{"text_format":"1","workbook":"xlsx","n_sheets":9,"sheets":["入力シート","個人情報の利用目的について","①法人インターネットバンキング利用申込書 (銀行提出用）","②法人インターネットバンキング利用申込書 (お客さま控)","③預金口座振替サービス利用申込書 (銀行提出用)","④預金口座振替サービス利用申込書（お客さま控）","⑤郵送のご案内、チェックリスト","作業シート","作業シート２"],"not_rendered":{"charts":0,"images":24,"macros":1,"external_links":0,"defined_names":9,"comments":1,"pivot_tables":0},"unopened":[],"bounds":{"document_bytes":16777216,"sheet_cells":100000,"rows_first":2000,"rows_last":500,"rows_between":2000,"halvings":0,"cell_chars":16384,"cell_head_chars":4096},"cells_cut":0,"cells_raw":0,"read":"whole","date_system":"1900"}

{"sheet":"入力シート","index":0,"n_rows":203,"n_cols":33,"rows_kept":203,"cut":false,"hidden":false,"merged":[[2,9,2,11],[111,8,112,9],[197,9,198,10],[110,2,113,5],[13,7,13,9],[14,7,14,9],[15,7,15,9],[16,7,16,9],[87,1,87,6],[90,1,90,6],[93,1,93,6],[50,2,50,5],[51,2,51,5],[52,2,52,5],[53,2,53,5],[56,2,56,5],[58,2,58,5],[59,2,59,5],[2,1,2,3],[11,1,13,6],[14,1,15,6],[11,7,11,9],[12,7,12,9],[55,2,55,5],[53,6,53,14],[57,6,57,14],[11,10,11,18],[12,10,12,18],[13,10,13,18],[14,10,14,18],[16,10,16,18],[15,10,15,18],[57,2,57,5],[74,10,74,18],[60,2,60,5],[61,2,61,5],[61,6,61,14],[78,1,78,6],[74,7,74,9],[75,7,75,9],[76,7,76,18],[77,7,77,18],[78,7,78,9],[78,11,78,13],[78,15,78,18],[76,1,76,6],[77,1,77,6],[173,1,175,3],[165,1,165,5],[165,6,165,12],[159,2,159,12],[17,10,17,18],[18,10,18,18],[50,6,50,14],[54,6,54,14],[52,6,52,14],[17,7,17,9],[18,7,18,9],[54,2,54,5],[50,1,53,1],[75,10,75,18],[58,6,58,14],[56,6,56,14],[186,4,186,11],[185,1,185,3],[186,1,186,3],[184,1,184,3],[184,4,184,11],[185,4,185,11],[166,1,167,5],[158,2,158,12],[152,5,152,12],[153,5,153,12],[135,1,135,12],[140,1,140,12],[147,1,147,12],[10,10,10,18],[16,1,18,6],[120,1,120,12],[152,1,152,4],[153,1,153,4],[130,1,130,12],[125,1,125,12],[51,6,51,14],[55,6,55,14],[59,6,59,14],[54,1,57,1],[67,1,68,1],[74,1,75,6],[60,6,60,14],[58,1,61,1],[65,1,66,1]]}
["法人インターネットバンキングサービス利用申込書等　作成用入力シート"]
["※本シートの必要項目に入力いただくことで、利用申込書等を作成いたします。"]
[null,null,null,null,"…選択してください。",null,null,null,null,null,null,null,"…ご入力ください。"]
["※各項目入力時の、次の項目への移動は、「Tab」キーまたはマウスをご利用ください。"]
["●ご契約者名様情報"]
["・当行にお届けいただいているおところ、おなまえ（口座名義）をご入力ください。"]
["・おなまえ（口座名義）は、株式会社・有限会社等、会社名・代表者名等まで略さずにご入力ください。"]
["・代表口座兼サービス指定口座とは、本サービスにおける代表ご利用口座となり、基本手数料のお引落口座"]
["　となります。（なお、お振込手数料の引落方法につきましては、下欄にてご指定ください）"]
["・サービス指定口座には、代表口座と同一名義または同一法人の本社・支社・支店等の名義の口座のみお申込みいただけます。"]
[null,"お取引銀行",null,null,null,null,null,"銀行名"]
[null,"おところ",null,null,null,null,null,"郵便番号"]
[null,null,null,null,null,null,null,"フリガナ"]
[null,null,null,null,null,null,null,"漢字"]
[null,"おなまえ（口座名義）",null,null,null,null,null,"フリガナ"]
[null,null,null,null,null,null,null,"漢字"]
[null,"①代表口座\n（ご利用手数料引落口座）\n兼サービス指定口座",null,null,null,null,null,"支店名"]
[null,null,null,null,null,null,null,"科目"]
[null,null,null,null,null,null,null,"口座番号"]
[]
["●オプション追加情報"]
["・ご希望のオプションに✔願います。代表口座の支店が本サービスのご契約となります。"]
["・預金口座振替、代金回収サービスの振替代り金入金口座は、代表口座または代表口座と同一店の"]
["　サービス指定口座（普通または当座）に限ります。"]
["・データ伝送サービスの資金引落口座としてご利用いただけるサービス指定口座は、代表口座"]
["　または代表口座と同一店のサービス指定口座（当座または普通）に限ります。"]
[]
[null,"基本サービスオプション（オプション・無料）"]
[null,null,null,"預金口座振替"]
[null,null,null,"代金回収サービス"]
[null,"データ伝送サービス（所定の手数料が必要です）"]
[null,null,null,"総合振込（必ず✔が必要です）"]
[null,null,null,"給与振込"]
[null,null,null,"地方税納入サービス"]
["※「データ伝送サービス」をご利用されるお客さまへ"]
["　「給与振込」「特別徴収地方税」の各サービスをご利用になる場合は、データ伝送サービス（総合振込）を"]
["　お申し込みいただいたうえで、「給与賞与振込」「特別徴収地方税」をお申し込みください。"]
["　（「給与賞与振込」「特別徴収地方税」の各サービスは、データ伝送サービス（総合振込）のオプションです）"]
["　・ご利用には、所定の基本手数料が別途掛かります。"]
["　・特別徴収地方税納入取引の取扱手数料については、納入指定日に納入資金引落口座から引き落としとなります。"]
[]
["●サービス指定口座情報"]
["・ご利用になる資金移動取引の資金引落口座、振替入金口座、照会対象口座をご入力ください。"]
["・この「利用申込書」では、代表口座を含めて４口座までお申込みいただけます。"]
["・５口座以上お申込みされる場合は、「サービス指定口座追加・削除依頼書」にて追加分をお申込みください。"]
["　（「サービス指定口座追加・削除依頼書」は、届出帳票（利用申込書・諸届）に準備しています。"]
[null,"印刷していただき法人インターネットバンキング利用申込書と一緒にご郵送ください。）"]
["・普通預金には決済用預金、カードローンを含みます。"]
["・通知預金のお取引は同一支店かつ同一名義の口座間に限ります。"]
["・定期預金は照会サービスのみご利用いただけます。"]
[null,"②","支店名"]
[null,null,"科目"]
[null,null,"口座番号"]
[null,null,"口座名義"]
[null,"③","支店名"]
[null,null,"科目"]
[null,null,"口座番号"]
[null,null,"口座名義"]
[null,"④","支店名"]
[null,null,"科目"]
[null,null,"口座番号"]
[null,null,"口座名義"]
[]
["●振込手数料の引落方法"]
["・振込手数料の引落方法をお選びください"]
[null,null,"振込資金引落口座から振込／振込指定日に引落（都度引落）"]
[null,null,"（サービス指定口座から、振込の都度引落します。）"]
[null,null,"代表口座から後日一括引落"]
[null,null,"（代表口座から翌月１０日に引落します。）"]
[]
["●サービス管理責任者情報"]
["・本サービスのご契約に際してお客さまを代表する責任者です。"]
["　ご契約者番号等、当行からの重要なお知らせはサービス管理責任者様宛にご連絡いたします。"]
["　個々の利用者登録や権限設定なども行っていただきます。"]
[null,"おなまえ",null,null,null,null,null,"フリガナ"]
[null,null,null,null,null,null,null,"漢字"]
[null,"所属部署"]
[null,"役職名"]
[null,"連絡先電話番号",null,null,null,null,null,null,null,null,"ー",null,null,null,"ー"]
[]
["●利用者ID・各種パスワード"]
["・利用者ＩＤは６～１６文字の英数字でご入力ください。英字・数字はそれぞれ１文字以上使用してください。（記号は使用できません）"]
["・パスワードは６～１６文字の英数字・記号でご入力ください。英字・数字はそれぞれ１文字以上使用してください。（記号は、＃ ＄ ＋ - . / : = ? @ [ ] _  | が使用できます。）"]
["　初回ログインパスワードと初回取引実行パスワードは、最初のログイン直後に変更していただきます。"]
["　（いずれも英字は大文字・小文字を判別します。）"]
[null,null,null,null,null,null,null,1,2,3,4,5,6,7,8,9,10,11,12,13,14,15,16]
[null,null,null,null,null,"英小文字"]
[null,"利用者ＩＤ",null,null,null,null,null,null,null,null,null,null,null,null,null,null,null,null,null,null,null,null,null,"英数字ででご入力ください。"]
[null,null,null,null,null,"英大文字"]
[null,null,null,null,null,"英小文字"]
[null,"初回ログインパスワード",null,null,null,null,null,null,null,null,null,null,null,null,null,null,null,null,null,null,null,null,null,"英数字・記号でご入力ください。"]
[null,null,null,null,null,"英大文字"]
[null,null,null,null,null,"英小文字"]
[null,"初回取引実行パスワード",null,null,null,null,null,null,null,null,null,null,null,null,null,null,null,null,null,null,null,null,null,"英数字・記号でご入力ください。"]
[null,null,null,null,null,"英大文字"]
[]
["●ワンタイムパスワード・ハードウェアトークンの申し込み"]
[null,null,"申し込みします",null,null,null,null,null,"申し込みしません",null,null,null,null,"←スマートフォン・パソコンでご利用できるソフトウェアトークンの場合は、お申込不要でご利用できます。"]
[]
["●「個人情報の利用目的について」を同意される場合は✔願います。",null,null,null,null,null,null,null,null,null,null,null,null,null,null,null,null,"●「法人インターネットバンキング利用規定」をご確認いただき✔願います。"]
[null,"・「個人情報の利用目的について」のシートをご覧のうえ✔願います。",null,null,null,null,null,null,null,null,null,null,null,null,null,null,null,null,"・「法人インターネットバンキング利用規定」をご確認願います。"]
[null,null,"個人情報の利用目的に同意しました",null,null,null,null,null,null,null,null,null,null,null,null,null,null,null,null,"利用規定を確認しました"]
[]
["●本取引は当行所定の法人インターネットバンキングサービス利用に関する各規定が適用されます。"]
["　規定は当行ホームページに掲載しています。"]
[]
["預金口座振替をご利用されないお客さまは、これで入力は終了です。"]
["下の印刷ボタンを押下して印刷してください。"]
["（下のボタンを押下しても印刷できない場合は、①法人インターネットバンキング利用申込書（銀行提出用）、"]
["　②法人インターネットバンキング利用申込書（お客さま控）、⑤郵送のご案内、チェックリスト　の各シートを印刷してください。"]
[]
[null,null,null,null,null,null,null,null,"←",null,"印刷の「ダイアログ」が表示されますので、出力するプリンターを選択して、OKボタンを押下してください。"]
[null,null,null,null,null,null,null,null,null,null,"（印刷範囲（全て）、印刷対象（選択したシート）は、変更しないでください）"]
[]
[]
["以下の項目は、預金口座振替をご利用されるお客さまのみご入力ください"]
["①申請区分"]
["・「新規」、「変更」からご選択ください。もみじ銀行の代金回収サービスは、新規・変更とも郵送でのお申込みはできません。"]
["・現在、預金口座振替をご利用されている場合は、「変更」を選択してください。"]
["・「変更」を選択された場合、④収納企業名～⑩取扱手数料お支払方法は変更がある場合のみ入力してください。"]
[]
[]
["②企業コード"]
["・①申請区分で「変更」を選択された場合は、現在ご使用の企業コード（１０桁）をご入力ください。"]
["・①申請区分で「新規」を選択された場合は、入力不要です。"]
[]
[]
["③取扱開始（変更）日",null,null,null,null,"　"]
["・お申込み日の２か月以降の振替日を西暦でご入力ください。"]
["　（例）2022/11/30"]
[]
[]
["④収納企業名"]
["・預金口座振替依頼書の収納企業名にご記入される名称をご入力ください。"]
["・①申請区分で「変更」を選択されている場合、収納企業名に変更がなければ入力不要です。"]
[]
[]
["⑤回収する資金の内容"]
["・（例）販売代金、家賃、会費、月謝　等"]
["・①申請区分で「変更」を選択されている場合、回収する資金の内容に変更がなければ入力不要です。"]
[]
[]
["⑥通帳摘要印字"]
["・お引落の内容を示すコメント（12文字以内）をカタカナでご入力ください。"]
["・濁点半濁点は１文字として数えてください。"]
["・お支払人様の預金通帳等に記載されます。"]
["・①申請区分で「変更」を選択されている場合、通帳摘要印字に変更がなければ入力不要です。"]
[]
[]
["⑦振替資金入金口座"]
["・お取引店の口座をご指定ください。"]
["・①申請区分で「変更」を選択されている場合、振替資金入金口座に変更がなければ入力不要です。"]
[null,"科目"]
[null,"口座番号"]
[]
["⑧利用サービス"]
["・「口座振替」「代金回収サービス（全国ネット型）」から選択してください。"]
["・①申請区分で「変更」を選択されている場合は、選択不要です。"]
[null,null,"口座振替"]
[null,null,"代金回収サービス（全国ネット型）"]
[]
["⑨振替日"]
["ａ．口座振替をご利用されるお客さま"]
["・①申請区分で「変更」を選択されている場合、振替日に変更がなければ入力不要です。"]
["・もみじ銀行のお客様は、銀行休業日の場合は翌営業日となります。"]
[null,"毎月"]
[null,"銀行休業日の場合は",null,null,null,null,null,"前営業日とする"]
[null,null,null,null,null,null,null,"翌営業日とする"]
[]
["ｂ．代金回収をご利用されるお客さま"]
["・複数選択可能です。"]
["・銀行休業日の場合は翌営業日となります。"]
["・①申請区分で「変更」を選択されている場合、振替日に変更がなければ入力不要です。"]
[null,"毎月",null,null,null,"６日"]
[null,null,null,null,null,"１６日"]
[null,null,null,null,null,"２６日"]
[]
["⑩取扱手数料お支払方法"]
["ａ．口座振替をご利用されるお客さま"]
["・①申請区分で「変更」を選択されている場合、取扱手数料お支払い方法に変更がなければ入力不要です。"]
[null,null,"①振込資金入金時に振替資金から控除する"]
[null,null,"②振替資金入金日と同一日に以下の指定口座から引落する"]
[null,null,"③以下の指定口座から翌月10日に引落す"]
[null,"②または③を選択した場合は、取扱手数料引落口座を選択してください。"]
[null,"科目"]
[null,"口座番号"]
[null,"口座名義"]
[]
["ｂ．代金回収をご利用されるお客さま"]
["・振込資金入金時に振込資金から控除となります。"]
[]
["入力項目は以上で終了です。"]
["下の印刷ボタンを押下して印刷してください。"]
["（下のボタンを押下しても印刷できない場合は、①法人インターネットバンキング利用申込書（銀行提出用）、"]
["　②法人インターネットバンキング利用申込書（お客さま控）、③預金口座振替サービス利用申込書（銀行提出用）、"]
["　④預金口座振替サービス利用申込書（お客さま控）、⑤郵送のご案内、チェックリスト　の各シートを印刷してください。"]
[]
[null,null,null,null,null,null,null,null,null,"←",null,"印刷の「ダイアログ」が表示されますので、出力するプリンターを選択して、OKボタンを押下してください。"]
[null,null,null,null,null,null,null,null,null,null,null,"（印刷範囲（全て）、印刷対象（選択したシート）は、変更しないでください）"]
[]
[]
[]
[null,null,null,null,null,null,null,null,null,null,null,null,null,null,null,null,null,null,null,null,null,null,null,null,null,null,null,null,null,null,null,null,"以上"]

{"sheet":"個人情報の利用目的について","index":1,"n_rows":0,"n_cols":0,"rows_kept":0,"cut":false,"hidden":false,"merged":[]}

{"sheet":"①法人インターネットバンキング利用申込書 (銀行提出用）","index":2,"n_rows":68,"n_cols":30,"rows_kept":68,"cut":false,"hidden":false,"merged":[[63,1,63,3],[63,4,63,6],[61,0,61,3],[30,1,32,5],[22,6,23,11],[30,6,32,11],[24,6,26,11],[45,4,45,6],[47,4,47,6],[48,4,48,6],[50,4,50,6],[60,7,60,10],[61,7,61,10],[60,0,60,3],[51,4,51,6],[53,4,53,6],[2,0,2,30],[4,25,4,30],[6,11,6,25],[8,8,9,25],[7,9,7,25],[6,26,8,30],[4,22,4,24],[6,8,6,10],[3,22,3,24],[3,25,3,30],[6,0,9,7],[30,0,32,0],[22,0,23,0],[27,6,29,11],[10,0,12,7],[13,0,15,7],[13,8,13,14],[22,12,23,18],[27,12,29,18],[30,12,32,18],[24,12,26,18],[10,11,10,25],[11,8,12,25],[24,0,26,0],[27,0,29,0],[27,1,29,5],[14,18,15,25],[41,0,42,5],[43,0,43,5],[41,6,41,8],[42,6,42,18],[41,9,41,18],[43,6,43,8],[43,10,43,13],[43,15,43,18],[24,26,26,30],[27,26,29,30],[10,8,10,10],[17,0,17,13],[22,19,23,25],[24,19,26,25],[27,19,29,25],[22,1,23,5],[24,1,26,5],[13,15,13,17],[14,15,15,17],[14,8,15,14],[30,26,32,30],[9,26,15,30],[67,24,67,31],[13,18,13,25],[41,22,41,28],[42,22,42,28],[41,19,41,21],[42,19,42,21],[17,14,17,27],[22,26,23,30],[63,29,63,31],[63,26,63,28],[63,22,63,24],[63,19,63,21],[30,19,32,25],[60,21,60,24]]}
["①法人インターネットバンキング利用申込書 (銀行提出用）"]
[]
["法人インターネットバンキングサービス利用申込書"]
[null,null,null,null,null,null,null,null,null,null,null,null,null,null,null,null,null,null,null,null,null,null,"銀行名",null,null,{"$f":"入力シート!K11","v":0}]
["●本取引は貴行所定の法人インターネットバンキングサービス利用に関する各規定が適用",null,null,null,null,null,null,null,null,null,null,null,null,null,null,null,null,null,null,null,null,null,"申込日",null,null,{"$f":"TODAY()","v":"2024-07-01"}]
["　されることを了承のうえ届出印を捺印し申込みます。なお、本申込書提出後、貴行が同意することにより契約が成立するものとします。"]
["おところ",null,null,null,null,null,null,null,"フリガナ",null,null,{"$f":"入力シート!K13","v":0},null,null,null,null,null,null,null,null,null,null,null,null,null,null,"代表口座お届印を\nご捺印ください"]
[null,null,null,null,null,null,null,null,"〒",{"$f":"入力シート!K12","v":0}]
[null,null,null,null,null,null,null,null,{"$f":"入力シート!K14","v":0}]
[]
["おなまえ\n（口座名義）",null,null,null,null,null,null,null,"フリガナ",null,null,{"$f":"入力シート!K15","v":0}]
[null,null,null,null,null,null,null,null,{"$f":"入力シート!K16","v":0}]
[]
["①代表口座\n（ご利用手数料引落口座）\n兼サービス指定口座",null,null,null,null,null,null,null,"支店名",null,null,null,null,null,null,"科目",null,null,"口座番号"]
[null,null,null,null,null,null,null,null,{"$f":"入力シート!K17","v":0},null,null,null,null,null,null,{"$f":"入力シート!K18","v":0},null,null,{"$f":"入力シート!K19","v":0}]
[]
["●オプション追加を以下のとおり届け出ます。（ご希望のオプションに✔願います。代表口座の支店が本サービスのご既約となります。）"]
["基本サービスオプション（オプション・無料）",null,null,null,null,null,null,null,null,null,null,null,null,null,"データ伝送サービス（所定の手数料が必要です）"]
[null,{"$f":"作業シート!G20","v":"　"},"預金口座振替",null,null,null,null,null,null,null,null,null,null,null,null,{"$f":"作業シート!G22","v":"　"},"総合振込（必ず✔が必要です）"]
[null,{"$f":"作業シート!G21","v":"　"},"代金回収サービス",null,null,null,null,null,null,null,null,null,null,null,null,{"$f":"作業シート!G23","v":"　"},"給与振込",null,null,null,{"$f":"作業シート!G24","v":"　"},"地方税納入サービス"]
["●サービス指定口座を以下の通り届け出ます。"]
["　（ご利用になる資金移動取引の資金引落口座、振替入金口座、照会対象口座をご記入・ご捺印ください。）"]
["No.","支店名",null,null,null,null,"科目",null,null,null,null,null,"口座番号",null,null,null,null,null,null,"口座名義",null,null,null,null,null,null,"預金口座お届印を\nご捺印ください"]
[]
["②",{"$f":"IF(入力シート!G51=\"\",\"\",入力シート!G51)","v":""},null,null,null,null,{"$f":"IF(入力シート!G52=\"\",\"\",入力シート!G52)","v":""},null,null,null,null,null,{"$f":"IF(入力シート!G53=\"\",\"\",入力シート!G53)","v":""},null,null,null,null,null,null,{"$f":"IF(入力シート!G54=\"\",\"\",入力シート!G54)","v":""}]
[]
[]
["③",{"$f":"IF(入力シート!G55=\"\",\"\",入力シート!G55)","v":""},null,null,null,null,{"$f":"IF(入力シート!G56=\"\",\"\",入力シート!G56)","v":""},null,null,null,null,null,{"$f":"IF(入力シート!G57=\"\",\"\",入力シート!G57)","v":""},null,null,null,null,null,null,{"$f":"IF(入力シート!G58=\"\",\"\",入力シート!G58)","v":""}]
[]
[]
["④",{"$f":"IF(入力シート!G59=\"\",\"\",入力シート!G59)","v":""},null,null,null,null,{"$f":"IF(入力シート!G60=\"\",\"\",入力シート!G60)","v":""},null,null,null,null,null,{"$f":"IF(入力シート!G61=\"\",\"\",入力シート!G61)","v":""},null,null,null,null,null,null,{"$f":"IF(入力シート!G62=\"\",\"\",入力シート!G62)","v":""}]
[]
[]
["（注）①普通預金には、決済用預金、カードローンを含みます。"]
["　　　②記入欄が足りない場合は、別途「サービス指定口座追加・削除依頼書」にご記入の上、ご提出ください。"]
["　　　③通知預金のお取引は同一支店かつ同一名義の口座間に限ります。"]
["　　　④定期預金は照会サービスのみご利用いただけます。"]
["●振込手数料の引落方法を以下の通り届け出ます。"]
[{"$f":"作業シート!H29","v":"　"},"振込資金引落口座から振込／振込指定日に引落（都度引落）",null,null,null,null,null,null,null,null,null,null,null,null,null,null,null,null,"サービス指定口座から、振込の都度引落します。"]
[{"$f":"作業シート!H30","v":"　"},"代表口座から後日一括引落",null,null,null,null,null,null,null,null,null,null,null,null,null,null,null,null,"代表口座から翌月１０日に引落します。"]
["●以下の者をサービス管理責任者として届け出ます。サービス管理責任者の行う取引は、当社を代表した取引として取り扱いください。"]
["おなまえ",null,null,null,null,null,"フリガナ",null,null,{"$f":"入力シート!K75","v":0},null,null,null,null,null,null,null,null,null,"所属部署",null,null,{"$f":"IF(入力シート!H77=\"\",\"\",入力シート!H77)","v":""}]
[null,null,null,null,null,null,{"$f":"入力シート!K76","v":0},null,null,null,null,null,null,null,null,null,null,null,null,"役職名",null,null,{"$f":"IF(入力シート!H78=\"\",\"\",入力シート!H78)","v":""}]
["連絡先電話番号",null,null,null,null,null,{"$f":"入力シート!H79","v":0},null,null,"－",{"$f":"入力シート!L79","v":0},null,null,null,"－",{"$f":"入力シート!P79","v":0}]
[null,null,null,null,null,null,null,1,2,3,4,5,6,7,8,9,10,11,12,13,14,15,16]
[null,null,null,null,"英小文字",null,null,{"$f":"作業シート!D92","v":"　"},{"$f":"作業シート!E92","v":"　"},{"$f":"作業シート!F92","v":"　"},{"$f":"作業シート!G92","v":"　"},{"$f":"作業シート!H92","v":"　"},{"$f":"作業シート!I92","v":"　"},{"$f":"作業シート!J92","v":"　"},{"$f":"作業シート!K92","v":"　"},{"$f":"作業シート!L92","v":"　"},{"$f":"作業シート!M92","v":"　"},{"$f":"作業シート!N92","v":"　"},{"$f":"作業シート!O92","v":"　"},{"$f":"作業シート!P92","v":"　"},{"$f":"作業シート!Q92","v":"　"},{"$f":"作業シート!R92","v":"　"},{"$f":"作業シート!S92","v":"　"}]
["利用者ＩＤ",null,null,null,null,null,null,{"$f":"IF(入力シート!H88=\"\",\"\",入力シート!H88)","v":""},{"$f":"IF(入力シート!I88=\"\",\"\",入力シート!I88)","v":""},{"$f":"IF(入力シート!J88=\"\",\"\",入力シート!J88)","v":""},{"$f":"IF(入力シート!K88=\"\",\"\",入力シート!K88)","v":""},{"$f":"IF(入力シート!L88=\"\",\"\",入力シート!L88)","v":""},{"$f":"IF(入力シート!M88=\"\",\"\",入力シート!M88)","v":""},{"$f":"IF(入力シート!N88=\"\",\"\",入力シート!N88)","v":""},{"$f":"IF(入力シート!O88=\"\",\"\",入力シート!O88)","v":""},{"$f":"IF(入力シート!P88=\"\",\"\",入力シート!P88)","v":""},{"$f":"IF(入力シート!Q88=\"\",\"\",入力シート!Q88)","v":""},{"$f":"IF(入力シート!R88=\"\",\"\",入力シート!R88)","v":""},{"$f":"IF(入力シート!S88=\"\",\"\",入力シート!S88)","v":""},{"$f":"IF(入力シート!T88=\"\",\"\",入力シート!T88)","v":""},{"$f":"IF(入力シート!U88=\"\",\"\",入力シート!U88)","v":""},{"$f":"IF(入力シート!V88=\"\",\"\",入力シート!V88)","v":""},{"$f":"IF(入力シート!W88=\"\",\"\",入力シート!W88)","v":""}]
[null,null,null,null,"英大文字",null,null,{"$f":"作業シート!D94","v":"　"},{"$f":"作業シート!E94","v":"　"},{"$f":"作業シート!F94","v":"　"},{"$f":"作業シート!G94","v":"　"},{"$f":"作業シート!H94","v":"　"},{"$f":"作業シート!I94","v":"　"},{"$f":"作業シート!J94","v":"　"},{"$f":"作業シート!K94","v":"　"},{"$f":"作業シート!L94","v":"　"},{"$f":"作業シート!M94","v":"　"},{"$f":"作業シート!N94","v":"　"},{"$f":"作業シート!O94","v":"　"},{"$f":"作業シート!P94","v":"　"},{"$f":"作業シート!Q94","v":"　"},{"$f":"作業シート!R94","v":"　"},{"$f":"作業シート!S94","v":"　"}]
[null,null,null,null,"英小文字",null,null,{"$f":"作業シート!D106","v":"　"},{"$f":"作業シート!E106","v":"　"},{"$f":"作業シート!F106","v":"　"},{"$f":"作業シート!G106","v":"　"},{"$f":"作業シート!H106","v":"　"},{"$f":"作業シート!I106","v":"　"},{"$f":"作業シート!J106","v":"　"},{"$f":"作業シート!K106","v":"　"},{"$f":"作業シート!L106","v":"　"},{"$f":"作業シート!M106","v":"　"},{"$f":"作業シート!N106","v":"　"},{"$f":"作業シート!O106","v":"　"},{"$f":"作業シート!P106","v":"　"},{"$f":"作業シート!Q106","v":"　"},{"$f":"作業シート!R106","v":"　"},{"$f":"作業シート!S106","v":"　"}]
["初回ログインパスワード",null,null,null,null,null,null,{"$f":"IF(入力シート!H91=\"\",\"\",入力シート!H91)","v":""},{"$f":"IF(入力シート!I91=\"\",\"\",入力シート!I91)","v":""},{"$f":"IF(入力シート!J91=\"\",\"\",入力シート!J91)","v":""},{"$f":"IF(入力シート!K91=\"\",\"\",入力シート!K91)","v":""},{"$f":"IF(入力シート!L91=\"\",\"\",入力シート!L91)","v":""},{"$f":"IF(入力シート!M91=\"\",\"\",入力シート!M91)","v":""},{"$f":"IF(入力シート!N91=\"\",\"\",入力シート!N91)","v":""},{"$f":"IF(入力シート!O91=\"\",\"\",入力シート!O91)","v":""},{"$f":"IF(入力シート!P91=\"\",\"\",入力シート!P91)","v":""},{"$f":"IF(入力シート!Q91=\"\",\"\",入力シート!Q91)","v":""},{"$f":"IF(入力シート!R91=\"\",\"\",入力シート!R91)","v":""},{"$f":"IF(入力シート!S91=\"\",\"\",入力シート!S91)","v":""},{"$f":"IF(入力シート!T91=\"\",\"\",入力シート!T91)","v":""},{"$f":"IF(入力シート!U91=\"\",\"\",入力シート!U91)","v":""},{"$f":"IF(入力シート!V91=\"\",\"\",入力シート!V91)","v":""},{"$f":"IF(入力シート!W91=\"\",\"\",入力シート!W91)","v":""}]
[null,null,null,null,"英大文字",null,null,{"$f":"作業シート!D108","v":"　"},{"$f":"作業シート!E108","v":"　"},{"$f":"作業シート!F108","v":"　"},{"$f":"作業シート!G108","v":"　"},{"$f":"作業シート!H108","v":"　"},{"$f":"作業シート!I108","v":"　"},{"$f":"作業シート!J108","v":"　"},{"$f":"作業シート!K108","v":"　"},{"$f":"作業シート!L108","v":"　"},{"$f":"作業シート!M108","v":"　"},{"$f":"作業シート!N108","v":"　"},{"$f":"作業シート!O108","v":"　"},{"$f":"作業シート!P108","v":"　"},{"$f":"作業シート!Q108","v":"　"},{"$f":"作業シート!R108","v":"　"},{"$f":"作業シート!S108","v":"　"}]
[null,null,null,null,"英小文字",null,null,{"$f":"作業シート!D120","v":"　"},{"$f":"作業シート!E120","v":"　"},{"$f":"作業シート!F120","v":"　"},{"$f":"作業シート!G120","v":"　"},{"$f":"作業シート!H120","v":"　"},{"$f":"作業シート!I120","v":"　"},{"$f":"作業シート!J120","v":"　"},{"$f":"作業シート!K120","v":"　"},{"$f":"作業シート!L120","v":"　"},{"$f":"作業シート!M120","v":"　"},{"$f":"作業シート!N120","v":"　"},{"$f":"作業シート!O120","v":"　"},{"$f":"作業シート!P120","v":"　"},{"$f":"作業シート!Q120","v":"　"},{"$f":"作業シート!R120","v":"　"},{"$f":"作業シート!S120","v":"　"}]
["初回取引実行パスワード",null,null,null,null,null,null,{"$f":"IF(入力シート!H94=\"\",\"\",入力シート!H94)","v":""},{"$f":"IF(入力シート!I94=\"\",\"\",入力シート!I94)","v":""},{"$f":"IF(入力シート!J94=\"\",\"\",入力シート!J94)","v":""},{"$f":"IF(入力シート!K94=\"\",\"\",入力シート!K94)","v":""},{"$f":"IF(入力シート!L94=\"\",\"\",入力シート!L94)","v":""},{"$f":"IF(入力シート!M94=\"\",\"\",入力シート!M94)","v":""},{"$f":"IF(入力シート!N94=\"\",\"\",入力シート!N94)","v":""},{"$f":"IF(入力シート!O94=\"\",\"\",入力シート!O94)","v":""},{"$f":"IF(入力シート!P94=\"\",\"\",入力シート!P94)","v":""},{"$f":"IF(入力シート!Q94=\"\",\"\",入力シート!Q94)","v":""},{"$f":"IF(入力シート!R94=\"\",\"\",入力シート!R94)","v":""},{"$f":"IF(入力シート!S94=\"\",\"\",入力シート!S94)","v":""},{"$f":"IF(入力シート!T94=\"\",\"\",入力シート!T94)","v":""},{"$f":"IF(入力シート!U94=\"\",\"\",入力シート!U94)","v":""},{"$f":"IF(入力シート!V94=\"\",\"\",入力シート!V94)","v":""},{"$f":"IF(入力シート!W94=\"\",\"\",入力シート!W94)","v":""}]
[null,null,null,null,"英大文字",null,null,{"$f":"作業シート!D122","v":"　"},{"$f":"作業シート!E122","v":"　"},{"$f":"作業シート!F122","v":"　"},{"$f":"作業シート!G122","v":"　"},{"$f":"作業シート!H122","v":"　"},{"$f":"作業シート!I122","v":"　"},{"$f":"作業シート!J122","v":"　"},{"$f":"作業シート!K122","v":"　"},{"$f":"作業シート!L122","v":"　"},{"$f":"作業シート!M122","v":"　"},{"$f":"作業シート!N122","v":"　"},{"$f":"作業シート!O122","v":"　"},{"$f":"作業シート!P122","v":"　"},{"$f":"作業シート!Q122","v":"　"},{"$f":"作業シート!R122","v":"　"},{"$f":"作業シート!S122","v":"　"}]
["●ワンタイムパスワード・ハードウェアトークンの申し込み"]
[{"$f":"作業シート!F35","v":"　"},"申し込みします",null,null,null,null,null,null,null,null,null,null,{"$f":"作業シート!L35","v":"　"},"申し込みしません"]
["●個人情報の利用目的について"]
[{"$f":"作業シート!G39","v":"　"},"個人情報の利用目的に同意しました"]
[]
["（銀行使用欄）",null,null,null,null,null,null,null,null,null,null,null,null,null,null,null,null,null,null,null,null,"（ＦＢセンター使用欄）"]
["店番",null,null,null,null,null,null,"ＣＩＦ",null,null,null,null,null,null,null,null,null,null,null,null,null,"契約者番号"]
["課金対象月",null,null,null,null,null,"月","書類発送先",null,null,null,"□","お客様",null,"□","ＡＳＣ",null,"□","契約店"]
[null,"＜印鑑照合・口座確認＞",null,null,null,null,null,null,null,null,null,null,null,null,null,null,null,null,null,"＜登録＞",null,null,null,null,null,null,"＜トークン発送＞"]
[null,"検閲",null,null,"実施",null,null,null,null,null,null,null,null,null,null,null,null,null,null,"検閲",null,null,"実施",null,null,null,"検閲",null,null,"実施"]
[]
[]
[]
["1/2  CS47960（2022.7改）",null,null,null,null,null,null,null,null,null,null,null,null,null,null,null,null,null,null,null,null,null,null,null,"（保存期間　解約後10年）"]

{"sheet":"②法人インターネットバンキング利用申込書 (お客さま控)","index":3,"n_rows":68,"n_cols":27,"rows_kept":68,"cut":false,"hidden":false,"merged":[[53,4,53,6],[45,4,45,6],[47,4,47,6],[48,4,48,6],[50,4,50,6],[51,4,51,6],[24,19,26,25],[2,0,2,30],[4,22,4,24],[4,25,4,30],[6,0,9,7],[6,8,6,10],[6,11,6,25],[6,26,8,30],[7,9,7,25],[8,8,9,25],[9,26,15,30],[10,0,12,7],[10,8,10,10],[10,11,10,25],[11,8,12,25],[13,0,15,7],[13,15,13,17],[13,18,13,25],[14,8,15,14],[14,15,15,17],[14,18,15,25],[13,8,13,14],[24,26,26,30],[27,26,29,30],[30,26,32,30],[17,0,17,13],[17,14,17,27],[22,0,23,0],[22,1,23,5],[22,6,23,11],[22,12,23,18],[22,19,23,25],[22,26,23,30],[27,0,29,0],[27,1,29,5],[27,6,29,11],[27,12,29,18],[27,19,29,25],[43,10,43,13],[43,15,43,18],[42,6,42,18],[24,0,26,0],[24,1,26,5],[24,6,26,11],[24,12,26,18],[3,22,3,24],[3,25,3,30],[42,19,42,21],[42,22,42,28],[43,0,43,5],[30,0,32,0],[30,1,32,5],[30,6,32,11],[30,12,32,18],[30,19,32,25],[41,0,42,5],[41,6,41,8],[41,9,41,18],[41,19,41,21],[41,22,41,28],[43,6,43,8]]}
["②法人インターネットバンキング利用申込書 (お客さま控)"]
["ご登録内容の確認及び電子証明書取得、初回ログインの際に必要となりますので、大切に保管してください。"]
["法人インターネットバンキングサービス利用申込書"]
[null,null,null,null,null,null,null,null,null,null,null,null,null,null,null,null,null,null,null,null,null,null,"銀行名",null,null,{"$f":"入力シート!K11","v":0}]
["●本取引は貴行所定の法人インターネットバンキングサービス利用に関する各規定が適用",null,null,null,null,null,null,null,null,null,null,null,null,null,null,null,null,null,null,null,null,null,"申込日",null,null,{"$f":"TODAY()","v":"2024-07-01"}]
["　されることを了承のうえ届出印を捺印し申込みます。なお、本申込書提出後、貴行が同意することにより契約が成立するものとします。"]
["おところ",null,null,null,null,null,null,null,"フリガナ",null,null,{"$f":"入力シート!K13","v":0},null,null,null,null,null,null,null,null,null,null,null,null,null,null,"代表口座お届印を\nご捺印ください"]
[null,null,null,null,null,null,null,null,"〒",{"$f":"入力シート!K12","v":0}]
[null,null,null,null,null,null,null,null,{"$f":"入力シート!K14","v":0}]
[]
["おなまえ\n（口座名義）",null,null,null,null,null,null,null,"フリガナ",null,null,{"$f":"入力シート!K15","v":0}]
[null,null,null,null,null,null,null,null,{"$f":"入力シート!K16","v":0}]
[]
["①代表口座\n（ご利用手数料引落口座）\n兼サービス指定口座",null,null,null,null,null,null,null,"支店名",null,null,null,null,null,null,"科目",null,null,"口座番号"]
[null,null,null,null,null,null,null,null,{"$f":"入力シート!K17","v":0},null,null,null,null,null,null,{"$f":"入力シート!K18","v":0},null,null,{"$f":"入力シート!K19","v":0}]
[]
["●オプション追加を以下のとおり届け出ます。（ご希望のオプションに✔願います。代表口座の支店が本サービスのご既約となります。）"]
["基本サービスオプション（オプション・無料）",null,null,null,null,null,null,null,null,null,null,null,null,null,"データ伝送サービス（所定の手数料が必要です）"]
[null,{"$f":"作業シート!G20","v":"　"},"預金口座振替",null,null,null,null,null,null,null,null,null,null,null,null,{"$f":"作業シート!G22","v":"　"},"総合振込（必ず✔が必要です）"]
[null,{"$f":"作業シート!G21","v":"　"},"代金回収サービス",null,null,null,null,null,null,null,null,null,null,null,null,{"$f":"作業シート!G23","v":"　"},"給与振込",null,null,null,{"$f":"作業シート!G24","v":"　"},"地方税納入サービス"]
["●サービス指定口座を以下の通り届け出ます。"]
["　（ご利用になる資金移動取引の資金引落口座、振替入金口座、照会対象口座をご記入・ご捺印ください。）"]
["No.","支店名",null,null,null,null,"科目",null,null,null,null,null,"口座番号",null,null,null,null,null,null,"口座名義",null,null,null,null,null,null,"預金口座お届印を\nご捺印ください"]
[]
["②",{"$f":"IF(入力シート!G51=\"\",\"\",入力シート!G51)","v":""},null,null,null,null,{"$f":"IF(入力シート!G52=\"\",\"\",入力シート!G52)","v":""},null,null,null,null,null,{"$f":"IF(入力シート!G53=\"\",\"\",入力シート!G53)","v":""},null,null,null,null,null,null,{"$f":"IF(入力シート!G54=\"\",\"\",入力シート!G54)","v":""}]
[]
[]
["③",{"$f":"IF(入力シート!G55=\"\",\"\",入力シート!G55)","v":""},null,null,null,null,{"$f":"IF(入力シート!G56=\"\",\"\",入力シート!G56)","v":""},null,null,null,null,null,{"$f":"IF(入力シート!G57=\"\",\"\",入力シート!G57)","v":""},null,null,null,null,null,null,{"$f":"IF(入力シート!G58=\"\",\"\",入力シート!G58)","v":""}]
[]
[]
["④",{"$f":"IF(入力シート!G59=\"\",\"\",入力シート!G59)","v":""},null,null,null,null,{"$f":"IF(入力シート!G60=\"\",\"\",入力シート!G60)","v":""},null,null,null,null,null,{"$f":"IF(入力シート!G61=\"\",\"\",入力シート!G61)","v":""},null,null,null,null,null,null,{"$f":"IF(入力シート!G62=\"\",\"\",入力シート!G62)","v":""}]
[]
[]
["（注）①普通預金には、決済用預金、カードローンを含みます。"]
["　　　②記入欄が足りない場合は、別途「サービス指定口座追加・削除依頼書」にご記入の上、ご提出ください。"]
["　　　③通知預金のお取引は同一支店かつ同一名義の口座間に限ります。"]
["　　　④定期預金は照会サービスのみご利用いただけます。"]
["●振込手数料の引落方法を以下の通り届け出ます。"]
[{"$f":"作業シート!H29","v":"　"},"振込資金引落口座から振込／振込指定日に引落（都度引落）",null,null,null,null,null,null,null,null,null,null,null,null,null,null,null,null,"サービス指定口座から、振込の都度引落します。"]
[{"$f":"作業シート!H30","v":"　"},"代表口座から後日一括引落",null,null,null,null,null,null,null,null,null,null,null,null,null,null,null,null,"代表口座から翌月１０日に引落します。"]
["●以下の者をサービス管理責任者として届け出ます。サービス管理責任者の行う取引は、当社を代表した取引として取り扱いください。"]
["おなまえ",null,null,null,null,null,"フリガナ",null,null,{"$f":"入力シート!K75","v":0},null,null,null,null,null,null,null,null,null,"所属部署",null,null,{"$f":"IF(入力シート!H77=\"\",\"\",入力シート!H77)","v":""}]
[null,null,null,null,null,null,{"$f":"入力シート!K76","v":0},null,null,null,null,null,null,null,null,null,null,null,null,"役職名",null,null,{"$f":"IF(入力シート!H78=\"\",\"\",入力シート!H78)","v":""}]
["連絡先電話番号",null,null,null,null,null,{"$f":"入力シート!H79","v":0},null,null,"－",{"$f":"入力シート!L79","v":0},null,null,null,"－",{"$f":"入力シート!P79","v":0}]
[null,null,null,null,null,null,null,1,2,3,4,5,6,7,8,9,10,11,12,13,14,15,16]
[null,null,null,null,"英小文字",null,null,{"$f":"作業シート!D92","v":"　"},{"$f":"作業シート!E92","v":"　"},{"$f":"作業シート!F92","v":"　"},{"$f":"作業シート!G92","v":"　"},{"$f":"作業シート!H92","v":"　"},{"$f":"作業シート!I92","v":"　"},{"$f":"作業シート!J92","v":"　"},{"$f":"作業シート!K92","v":"　"},{"$f":"作業シート!L92","v":"　"},{"$f":"作業シート!M92","v":"　"},{"$f":"作業シート!N92","v":"　"},{"$f":"作業シート!O92","v":"　"},{"$f":"作業シート!P92","v":"　"},{"$f":"作業シート!Q92","v":"　"},{"$f":"作業シート!R92","v":"　"},{"$f":"作業シート!S92","v":"　"}]
["利用者ＩＤ",null,null,null,null,null,null,{"$f":"IF(入力シート!H88=\"\",\"\",入力シート!H88)","v":""},{"$f":"IF(入力シート!I88=\"\",\"\",入力シート!I88)","v":""},{"$f":"IF(入力シート!J88=\"\",\"\",入力シート!J88)","v":""},{"$f":"IF(入力シート!K88=\"\",\"\",入力シート!K88)","v":""},{"$f":"IF(入力シート!L88=\"\",\"\",入力シート!L88)","v":""},{"$f":"IF(入力シート!M88=\"\",\"\",入力シート!M88)","v":""},{"$f":"IF(入力シート!N88=\"\",\"\",入力シート!N88)","v":""},{"$f":"IF(入力シート!O88=\"\",\"\",入力シート!O88)","v":""},{"$f":"IF(入力シート!P88=\"\",\"\",入力シート!P88)","v":""},{"$f":"IF(入力シート!Q88=\"\",\"\",入力シート!Q88)","v":""},{"$f":"IF(入力シート!R88=\"\",\"\",入力シート!R88)","v":""},{"$f":"IF(入力シート!S88=\"\",\"\",入力シート!S88)","v":""},{"$f":"IF(入力シート!T88=\"\",\"\",入力シート!T88)","v":""},{"$f":"IF(入力シート!U88=\"\",\"\",入力シート!U88)","v":""},{"$f":"IF(入力シート!V88=\"\",\"\",入力シート!V88)","v":""},{"$f":"IF(入力シート!W88=\"\",\"\",入力シート!W88)","v":""}]
[null,null,null,null,"英大文字",null,null,{"$f":"作業シート!D94","v":"　"},{"$f":"作業シート!E94","v":"　"},{"$f":"作業シート!F94","v":"　"},{"$f":"作業シート!G94","v":"　"},{"$f":"作業シート!H94","v":"　"},{"$f":"作業シート!I94","v":"　"},{"$f":"作業シート!J94","v":"　"},{"$f":"作業シート!K94","v":"　"},{"$f":"作業シート!L94","v":"　"},{"$f":"作業シート!M94","v":"　"},{"$f":"作業シート!N94","v":"　"},{"$f":"作業シート!O94","v":"　"},{"$f":"作業シート!P94","v":"　"},{"$f":"作業シート!Q94","v":"　"},{"$f":"作業シート!R94","v":"　"},{"$f":"作業シート!S94","v":"　"}]
[null,null,null,null,"英小文字",null,null,{"$f":"作業シート!D106","v":"　"},{"$f":"作業シート!E106","v":"　"},{"$f":"作業シート!F106","v":"　"},{"$f":"作業シート!G106","v":"　"},{"$f":"作業シート!H106","v":"　"},{"$f":"作業シート!I106","v":"　"},{"$f":"作業シート!J106","v":"　"},{"$f":"作業シート!K106","v":"　"},{"$f":"作業シート!L106","v":"　"},{"$f":"作業シート!M106","v":"　"},{"$f":"作業シート!N106","v":"　"},{"$f":"作業シート!O106","v":"　"},{"$f":"作業シート!P106","v":"　"},{"$f":"作業シート!Q106","v":"　"},{"$f":"作業シート!R106","v":"　"},{"$f":"作業シート!S106","v":"　"}]
["初回ログインパスワード",null,null,null,null,null,null,{"$f":"IF(入力シート!H91=\"\",\"\",入力シート!H91)","v":""},{"$f":"IF(入力シート!I91=\"\",\"\",入力シート!I91)","v":""},{"$f":"IF(入力シート!J91=\"\",\"\",入力シート!J91)","v":""},{"$f":"IF(入力シート!K91=\"\",\"\",入力シート!K91)","v":""},{"$f":"IF(入力シート!L91=\"\",\"\",入力シート!L91)","v":""},{"$f":"IF(入力シート!M91=\"\",\"\",入力シート!M91)","v":""},{"$f":"IF(入力シート!N91=\"\",\"\",入力シート!N91)","v":""},{"$f":"IF(入力シート!O91=\"\",\"\",入力シート!O91)","v":""},{"$f":"IF(入力シート!P91=\"\",\"\",入力シート!P91)","v":""},{"$f":"IF(入力シート!Q91=\"\",\"\",入力シート!Q91)","v":""},{"$f":"IF(入力シート!R91=\"\",\"\",入力シート!R91)","v":""},{"$f":"IF(入力シート!S91=\"\",\"\",入力シート!S91)","v":""},{"$f":"IF(入力シート!T91=\"\",\"\",入力シート!T91)","v":""},{"$f":"IF(入力シート!U91=\"\",\"\",入力シート!U91)","v":""},{"$f":"IF(入力シート!V91=\"\",\"\",入力シート!V91)","v":""},{"$f":"IF(入力シート!W91=\"\",\"\",入力シート!W91)","v":""}]
[null,null,null,null,"英大文字",null,null,{"$f":"作業シート!D108","v":"　"},{"$f":"作業シート!E108","v":"　"},{"$f":"作業シート!F108","v":"　"},{"$f":"作業シート!G108","v":"　"},{"$f":"作業シート!H108","v":"　"},{"$f":"作業シート!I108","v":"　"},{"$f":"作業シート!J108","v":"　"},{"$f":"作業シート!K108","v":"　"},{"$f":"作業シート!L108","v":"　"},{"$f":"作業シート!M108","v":"　"},{"$f":"作業シート!N108","v":"　"},{"$f":"作業シート!O108","v":"　"},{"$f":"作業シート!P108","v":"　"},{"$f":"作業シート!Q108","v":"　"},{"$f":"作業シート!R108","v":"　"},{"$f":"作業シート!S108","v":"　"}]
[null,null,null,null,"英小文字",null,null,{"$f":"作業シート!D120","v":"　"},{"$f":"作業シート!E120","v":"　"},{"$f":"作業シート!F120","v":"　"},{"$f":"作業シート!G120","v":"　"},{"$f":"作業シート!H120","v":"　"},{"$f":"作業シート!I120","v":"　"},{"$f":"作業シート!J120","v":"　"},{"$f":"作業シート!K120","v":"　"},{"$f":"作業シート!L120","v":"　"},{"$f":"作業シート!M120","v":"　"},{"$f":"作業シート!N120","v":"　"},{"$f":"作業シート!O120","v":"　"},{"$f":"作業シート!P120","v":"　"},{"$f":"作業シート!Q120","v":"　"},{"$f":"作業シート!R120","v":"　"},{"$f":"作業シート!S120","v":"　"}]
["初回取引実行パスワード",null,null,null,null,null,null,{"$f":"IF(入力シート!H94=\"\",\"\",入力シート!H94)","v":""},{"$f":"IF(入力シート!I94=\"\",\"\",入力シート!I94)","v":""},{"$f":"IF(入力シート!J94=\"\",\"\",入力シート!J94)","v":""},{"$f":"IF(入力シート!K94=\"\",\"\",入力シート!K94)","v":""},{"$f":"IF(入力シート!L94=\"\",\"\",入力シート!L94)","v":""},{"$f":"IF(入力シート!M94=\"\",\"\",入力シート!M94)","v":""},{"$f":"IF(入力シート!N94=\"\",\"\",入力シート!N94)","v":""},{"$f":"IF(入力シート!O94=\"\",\"\",入力シート!O94)","v":""},{"$f":"IF(入力シート!P94=\"\",\"\",入力シート!P94)","v":""},{"$f":"IF(入力シート!Q94=\"\",\"\",入力シート!Q94)","v":""},{"$f":"IF(入力シート!R94=\"\",\"\",入力シート!R94)","v":""},{"$f":"IF(入力シート!S94=\"\",\"\",入力シート!S94)","v":""},{"$f":"IF(入力シート!T94=\"\",\"\",入力シート!T94)","v":""},{"$f":"IF(入力シート!U94=\"\",\"\",入力シート!U94)","v":""},{"$f":"IF(入力シート!V94=\"\",\"\",入力シート!V94)","v":""},{"$f":"IF(入力シート!W94=\"\",\"\",入力シート!W94)","v":""}]
[null,null,null,null,"英大文字",null,null,{"$f":"作業シート!D122","v":"　"},{"$f":"作業シート!E122","v":"　"},{"$f":"作業シート!F122","v":"　"},{"$f":"作業シート!G122","v":"　"},{"$f":"作業シート!H122","v":"　"},{"$f":"作業シート!I122","v":"　"},{"$f":"作業シート!J122","v":"　"},{"$f":"作業シート!K122","v":"　"},{"$f":"作業シート!L122","v":"　"},{"$f":"作業シート!M122","v":"　"},{"$f":"作業シート!N122","v":"　"},{"$f":"作業シート!O122","v":"　"},{"$f":"作業シート!P122","v":"　"},{"$f":"作業シート!Q122","v":"　"},{"$f":"作業シート!R122","v":"　"},{"$f":"作業シート!S122","v":"　"}]
["●ワンタイムパスワード・ハードウェアトークンの申し込み"]
[{"$f":"作業シート!F35","v":"　"},"申し込みします",null,null,null,null,null,null,null,null,null,null,{"$f":"作業シート!L35","v":"　"},"申し込みしません"]
["●個人情報の利用目的について"]
[{"$f":"作業シート!G39","v":"　"},"個人情報の利用目的に同意しました"]
[]
[]
[]
[]
[]
[]
[]
[]
[]
["2/2  CS47960（2022.7改）"]

{"sheet":"③預金口座振替サービス利用申込書 (銀行提出用)","index":4,"n_rows":56,"n_cols":28,"rows_kept":56,"cut":false,"hidden":false,"merged":[[7,0,8,6],[7,7,8,25],[9,0,9,6],[1,0,1,30],[2,22,2,24],[2,25,2,29],[5,0,6,6],[5,7,6,25],[5,26,5,29],[3,22,3,24],[3,25,3,29],[11,0,11,6],[11,7,11,29],[13,7,13,29],[12,0,12,6],[12,7,12,29],[13,0,13,6],[34,11,34,18],[35,8,35,10],[35,11,35,18],[36,8,38,10],[9,7,9,25],[33,8,33,10],[33,11,33,18],[15,0,15,6],[15,7,15,29],[19,0,20,6],[19,7,19,12],[19,13,19,18],[19,19,20,29],[20,7,20,12],[20,13,20,18],[17,7,17,18],[54,19,54,29],[50,0,52,3],[27,0,27,6],[16,0,16,6],[16,7,16,29],[17,0,18,6],[21,0,21,6],[21,7,21,29],[22,0,22,6],[23,0,26,6],[23,9,23,18],[47,1,47,4],[47,24,47,29],[28,0,39,6],[46,24,46,29],[34,8,34,10]]}
["③預金口座振替サービス利用申込書（銀行提出用）"]
["預金口座振替サービス　利用申込書"]
[null,null,null,null,null,null,null,null,null,null,null,null,null,null,null,null,null,null,null,null,null,null,"銀行名",null,null,{"$f":"入力シート!K11","v":0}]
[null,null,null,null,null,null,null,null,null,null,null,null,null,null,null,null,null,null,null,null,null,null,"申込日",null,null,{"$f":"TODAY()","v":"2024-07-01"}]
["口座振替サービスの取扱いについて、以下のとおり届出ます。"]
["おところ",null,null,null,null,null,null,{"$f":"入力シート!K14","v":0},null,null,null,null,null,null,null,null,null,null,null,null,null,null,null,null,null,null,"お届出印※"]
[]
["おなまえ\n（口座名義※）",null,null,null,null,null,null,{"$f":"入力シート!K16","v":0}]
[]
["お取引店",null,null,null,null,null,null,{"$f":"入力シート!K17","v":0}]
["※振替入金口座の口座名義を記入のうえお届出印をご捺印ください。"]
["申込区分",null,null,null,null,null,null,{"$f":"入力シート!B121","v":0}]
["企業コード",null,null,null,null,null,null,{"$f":"IF(入力シート!B126=\"\",\"\",入力シート!B126)","v":""}]
["取扱開始（変更）日",null,null,null,null,null,null,{"$f":"入力シート!B131","v":"00:00:00"}]
["以下の項目については変更の場合は変更項目のみご記入ください。"]
["収納企業名",null,null,null,null,null,null,{"$f":"IF(入力シート!B136=\"\",\"\",入力シート!B136)","v":""}]
["回収する資金の内容",null,null,null,null,null,null,{"$f":"IF(入力シート!B141=\"\",\"\",入力シート!B141)","v":""}]
["通帳摘要印字",null,null,null,null,null,null,{"$f":"IF(入力シート!B148=\"\",\"\",入力シート!B148)","v":""}]
[null,null,null,null,null,null,null,"お引落の内容を示すコメントをカタカナでご指定ください。濁点・半濁点は一文字です。お支払人様の預金通帳に記載されます。"]
["振替資金入金口座",null,null,null,null,null,null,"科目",null,null,null,null,null,"口座番号",null,null,null,null,null,"お取引店の口座をご指定ください"]
[null,null,null,null,null,null,null,{"$f":"IF(入力シート!F153=\"\",\"\",入力シート!F153)","v":""},null,null,null,null,null,{"$f":"IF(入力シート!F154=\"\",\"\",入力シート!F154)","v":""}]
["依頼明細の授受",null,null,null,null,null,null,"法人インターネットバンキング"]
["利用サービス",null,null,null,null,null,null,{"$f":"作業シート!C60","v":"　"},"口座振替",null,null,null,null,null,null,null,null,null,null,{"$f":"作業シート!F60","v":"　"},"代金回収サービス（全国ネット型）"]
["振替日",null,null,null,null,null,null,"毎月",null,{"$f":"IF(入力シート!G166=\"\",\"\",入力シート!G166)","v":""},null,null,null,null,null,null,null,null,null,"毎月",null,{"$f":"作業シート!E68","v":"　"},"６日"]
[null,null,null,null,null,null,null,"銀行休業日の場合は",null,null,null,null,null,{"$f":"作業シート!E63","v":"　"},"前営業日とする",null,null,null,null,null,null,{"$f":"作業シート!E69","v":"　"},"１６日"]
[null,null,null,null,null,null,null,null,null,null,null,null,null,{"$f":"作業シート!E64","v":"　"},"翌営業日とする",null,null,null,null,null,null,{"$f":"作業シート!E70","v":"　"},"２６日"]
[null,null,null,null,null,null,null,null,null,null,null,null,null,null,null,null,null,null,null,null,"銀行休業日の場合は翌営業日とする"]
["振替結果データ",null,null,null,null,null,null,"全件",null,null,null,null,null,null,null,null,null,null,null,"全件"]
["取扱手数料お支払方法",null,null,null,null,null,null,{"$f":"作業シート!G73","v":"　"},"①振込資金入金時に振替資金から控除する",null,null,null,null,null,null,null,null,null,null,"振込資金入金時に振込資金から控除する"]
[null,null,null,null,null,null,null,{"$f":"作業シート!G74","v":"　"},"②振替資金入金日と同一日に以下の指定口座から引落する"]
[null,null,null,null,null,null,null,{"$f":"作業シート!G75","v":"　"},"③以下の指定口座から翌月10日に引落す"]
[null,null,null,null,null,null,null,"手数料引落口座"]
[null,null,null,null,null,null,null,"（②または③を選択した場合はご記入ください）"]
[null,null,null,null,null,null,null,null,"科目",null,null,{"$f":"IF(入力シート!E185=\"\",\"\",入力シート!E185)","v":""}]
[null,null,null,null,null,null,null,null,"口座番号",null,null,{"$f":"IF(入力シート!E186=\"\",\"\",入力シート!E186)","v":""}]
[null,null,null,null,null,null,null,null,"口座名義",null,null,{"$f":"IF(入力シート!E187=\"\",\"\",入力シート!E187)","v":""}]
[null,null,null,null,null,null,null,null,"お届出印"]
[]
[]
[]
[]
["【銀行使用欄】"]
["店番",null,null,null,null,null,"ＣＩＦ"]
["他媒体からの変更お有無（記憶媒体→データ伝送、請求書→法人ＩＢ等）"]
["□","なし",null,null,null,null,null,null,null,null,null,null,null,null,null,null,"＜進捗状況＞"]
["□","あり（現在使用している企業コード）",null,null,null,null,null,null,null,null,null,null,null,null,null,null,"確認項目",null,null,null,null,null,null,null,"確認日"]
[null,null,null,null,null,null,null,null,null,null,null,null,null,null,null,null,"ワークフローの承認"]
[null,"読替対応",null,null,null,"□","要",null,"□","不要",null,null,null,null,null,null,"契約先への企業コード通知"]
[null,"読替済確認"]
[null,null,null,null,null,null,null,null,null,null,null,null,null,null,null,null,"取引店",null,null,"印鑑照合",null,null,null,null,"ＦＢセンター"]
["企業コード",null,null,null,null,null,null,null,null,null,null,null,null,null,null,null,"検閲",null,null,"実施",null,null,null,null,"検閲",null,null,"実施"]
[]
[]
[]
[null,null,null,null,null,null,null,null,null,null,null,null,null,null,null,null,null,null,null,"（保存期間　解約後　５年）"]
["1/2 YK00553（2022.7改）"]

{"sheet":"④預金口座振替サービス利用申込書（お客さま控）","index":5,"n_rows":56,"n_cols":27,"rows_kept":56,"cut":false,"hidden":false,"merged":[[36,11,38,14],[23,0,26,6],[27,0,27,6],[15,0,15,6],[16,0,16,6],[15,7,15,29],[17,7,17,18],[19,7,19,12],[19,13,19,18],[20,7,20,12],[20,13,20,18],[36,8,38,10],[28,0,39,6],[33,8,33,10],[34,8,34,10],[35,8,35,10],[7,0,8,6],[9,0,9,6],[21,0,21,6],[17,0,18,6],[19,0,20,6],[1,0,1,30],[2,25,2,29],[5,7,6,25],[7,7,8,25],[22,0,22,6],[9,7,9,25],[2,22,2,24],[11,7,11,29],[11,0,11,6],[13,0,13,6],[13,7,13,29],[5,26,5,29],[5,0,6,6],[19,19,20,29],[12,0,12,6],[12,7,12,29],[3,22,3,24],[3,25,3,29],[33,11,33,18],[34,11,34,18],[35,11,35,18],[21,7,21,29],[16,7,16,29],[23,9,23,18],[6,26,9,29]]}
["④預金口座振替サービス利用申込書（お客さま控）　郵送不要です。大切に保管してください。"]
["預金口座振替サービス　利用申込書"]
[null,null,null,null,null,null,null,null,null,null,null,null,null,null,null,null,null,null,null,null,null,null,"銀行名",null,null,{"$f":"入力シート!K11","v":0}]
[null,null,null,null,null,null,null,null,null,null,null,null,null,null,null,null,null,null,null,null,null,null,"申込日",null,null,{"$f":"TODAY()","v":"2024-07-01"}]
["口座振替サービスの取扱いについて、以下のとおり届出ます。"]
["おところ",null,null,null,null,null,null,{"$f":"入力シート!K14","v":0},null,null,null,null,null,null,null,null,null,null,null,null,null,null,null,null,null,null,"お届出印※"]
[]
["おなまえ\n（口座名義※）",null,null,null,null,null,null,{"$f":"入力シート!K16","v":0}]
[]
["お取引店",null,null,null,null,null,null,{"$f":"入力シート!K17","v":0}]
["※振替入金口座の口座名義を記入のうえお届出印をご捺印ください。"]
["申込区分",null,null,null,null,null,null,{"$f":"入力シート!B121","v":0}]
["企業コード",null,null,null,null,null,null,{"$f":"IF(入力シート!B126=\"\",\"\",入力シート!B126)","v":""}]
["取扱開始（変更）日",null,null,null,null,null,null,{"$f":"入力シート!B131","v":"00:00:00"}]
["以下の項目については変更の場合は変更項目のみご記入ください。"]
["収納企業名",null,null,null,null,null,null,{"$f":"IF(入力シート!B136=\"\",\"\",入力シート!B136)","v":""}]
["回収する資金の内容",null,null,null,null,null,null,{"$f":"IF(入力シート!B141=\"\",\"\",入力シート!B141)","v":""}]
["通帳摘要印字",null,null,null,null,null,null,{"$f":"IF(入力シート!B148=\"\",\"\",入力シート!B148)","v":""}]
[null,null,null,null,null,null,null,"お引落の内容を示すコメントをカタカナでご指定ください。濁点・半濁点は一文字です。お支払人様の預金通帳に記載されます。"]
["振替資金入金口座",null,null,null,null,null,null,"科目",null,null,null,null,null,"口座番号",null,null,null,null,null,"お取引店の口座をご指定ください"]
[null,null,null,null,null,null,null,{"$f":"IF(入力シート!F153=\"\",\"\",入力シート!F153)","v":""},null,null,null,null,null,{"$f":"IF(入力シート!F154=\"\",\"\",入力シート!F154)","v":""}]
["依頼明細の授受",null,null,null,null,null,null,"法人インターネットバンキング"]
["利用サービス",null,null,null,null,null,null,{"$f":"作業シート!C60","v":"　"},"口座振替",null,null,null,null,null,null,null,null,null,null,{"$f":"作業シート!F60","v":"　"},"代金回収サービス（全国ネット型）"]
["振替日",null,null,null,null,null,null,"毎月",null,{"$f":"IF(入力シート!G166=\"\",\"\",入力シート!G166)","v":""},null,null,null,null,null,null,null,null,null,"毎月",null,{"$f":"作業シート!E68","v":"　"},"６日"]
[null,null,null,null,null,null,null,"銀行休業日の場合は",null,null,null,null,null,{"$f":"作業シート!E63","v":"　"},"前営業日とする",null,null,null,null,null,null,{"$f":"作業シート!E69","v":"　"},"１６日"]
[null,null,null,null,null,null,null,null,null,null,null,null,null,{"$f":"作業シート!E64","v":"　"},"翌営業日とする",null,null,null,null,null,null,{"$f":"作業シート!E70","v":"　"},"２６日"]
[null,null,null,null,null,null,null,null,null,null,null,null,null,null,null,null,null,null,null,null,"銀行休業日の場合は翌営業日とする"]
["振替結果データ",null,null,null,null,null,null,"全件",null,null,null,null,null,null,null,null,null,null,null,"全件"]
["取扱手数料お支払方法",null,null,null,null,null,null,{"$f":"作業シート!G73","v":"　"},"①振込資金入金時に振替資金から控除する",null,null,null,null,null,null,null,null,null,null,"振込資金入金時に振込資金から控除する"]
[null,null,null,null,null,null,null,{"$f":"作業シート!G74","v":"　"},"②振替資金入金日と同一日に以下の指定口座から引落する"]
[null,null,null,null,null,null,null,{"$f":"作業シート!G75","v":"　"},"③以下の指定口座から翌月10日に引落す"]
[null,null,null,null,null,null,null,"手数料引落口座"]
[null,null,null,null,null,null,null,"（②または③を選択した場合はご記入ください）"]
[null,null,null,null,null,null,null,null,"科目",null,null,{"$f":"IF(入力シート!E185=\"\",\"\",入力シート!E185)","v":""}]
[null,null,null,null,null,null,null,null,"口座番号",null,null,{"$f":"IF(入力シート!E186=\"\",\"\",入力シート!E186)","v":""}]
[null,null,null,null,null,null,null,null,"口座名義",null,null,{"$f":"IF(入力シート!E187=\"\",\"\",入力シート!E187)","v":""}]
[null,null,null,null,null,null,null,null,"お届出印"]
[]
[]
[]
[]
[]
[]
[]
[]
[]
[]
[]
[]
[]
[]
[]
[]
[]
[]
["2/2 YK00553（2022.7改）"]

{"sheet":"⑤郵送のご案内、チェックリスト","index":6,"n_rows":54,"n_cols":19,"rows_kept":54,"cut":false,"hidden":false,"merged":[[53,5,54,11],[35,17,40,17],[35,18,40,18],[41,14,42,14],[41,16,42,16],[41,18,42,18],[35,14,40,14],[24,1,24,6],[19,1,19,6],[47,6,47,12],[35,16,40,16],[35,6,40,6],[35,8,40,8],[35,10,40,10],[35,11,40,11],[35,12,40,12]]}
["法人インターネット・モバイルバンキングサービス利用申込書郵送時のご案内"]
[null,null,null,"★ご記入事項を訂正される場合は、お手数ですが修正事項を入力のうえ、"]
[null,null,null,"　もう一度新しい申込書を印刷してください。（修正液などでの訂正はお受け付けできません。）"]
[]
[]
[null,null,null,"★お届出印が、代表口座や他のサービス指定口座と同一の場合も、全てご捺印ください。"]
[null,null,null,"★「お届け印」は鮮明にご押印願います。"]
[]
[]
[null,null,null,"★宛名用紙を切取り、縦型の定型封筒にしっかりと貼り付けてください。"]
[null,null,null,"　宛名がはがれた場合、定形外封筒を使用した場合、間違った貼り付け方法をした場合など、"]
[null,null,null,"　郵便物として認められず差出人に返送される場合がありますのでご注意ください。"]
[null,null,null,"★本宛名用紙は料金受取人払いとなっておりますので、切手を貼る必要はございません。"]
[null,null,null,"★封筒の裏面にお名前、ご住所をご記入ください。"]
[]
[null,null,null,"★「お客さま控え」はご自身で大切に保管してください。"]
[]
["チェックリスト"]
["チェック","確認項目",null,null,null,null,null,"備考"]
["□","必要書類は揃っていますか。",null,null,null,null,null,"【預金口座振替・代金回収サービスの申込がない場合】"]
[null,null,null,null,null,null,null,"①法人インターネットバンキング利用申込書（銀行提出用）"]
[null,null,null,null,null,null,null,"【預金口座振替・代金回収サービスの申込がある場合】"]
[null,null,null,null,null,null,null,"①法人インターネットバンキング利用申込書（銀行提出用）"]
[null,null,null,null,null,null,null,"③預金口座振替サービス利用申込書（銀行提出用）"]
["□","印鑑の押印もれはありませんか。",null,null,null,null,null,"【預金口座振替・代金回収サービスの申込がある場合】"]
[null,null,null,null,null,null,null,"取扱手数料お支払方法で②または③を選択された場合は、"]
[null,null,null,null,null,null,null,"③預金口座振替サービス利用申込書（銀行提出用）の「お届け印」欄"]
[null,null,null,null,null,null,null,"に押印してください。"]
[]
["お申込書郵送手順"]
["★お手持ちの定形封筒をご用意いただき、下記の「宛先用紙」を切り取り、封筒上部左角に合わせて"]
["　しっかりとのりづけしてください。"]
["★印刷した「申込書」を封入のうえ、ご郵送ください。"]
[]
[]
[null,null,null,null,null,null,7,null,3,null,0,"ー",8,null,7,null,9,null,0]
[]
[]
[]
[]
[null,null,null,"料金受取人払郵便"]
[null,null,null,"広島中央局",null,null,null,null,null,null,null,null,null,null,1,null,1,null,9]
[null,null,null,"承　　認"]
[null,null,null,{"$f":"IF(G48=\"山口銀行\",\"２３２９\",IF(G48=\"もみじ銀行\",\"２３２７\",IF(G48=\"北九州銀行\",\"２３２８\")))","v":false}]
[null,null,null,"差出有効期間"]
[null,null,null,"2026年7月"]
[null,null,null,"24日まで"]
[null,null,null,null,null,null,{"$f":"入力シート!K11","v":0}]
[null,null,null,null,null,null,"ＦＢセンター行"]
[]
[]
[]
[]
[null,null,null,null,null,"\"　切り取り線　\""]

{"sheet":"作業シート","index":7,"n_rows":248,"n_cols":19,"rows_kept":248,"cut":false,"hidden":true,"merged":[]}
["＜利用申込書＞"]
["銀行名"]
[null,null,null,"山口銀行"]
[null,null,null,"もみじ銀行"]
[null,null,null,"北九州銀行"]
[]
["代表口座科目"]
[null,null,null,"普通"]
[null,null,null,"当座"]
[]
["サービス指定口座科目"]
[null,null,null,"普通"]
[null,null,null,"当座"]
[null,null,null,"通知"]
[null,null,null,"定期"]
[]
["オプション"]
[]
[]
[null,null,null,null,null,false,{"$f":"IF(F20=TRUE,\"✔\",\"　\")","v":"　"}]
[null,null,null,null,null,false,{"$f":"IF(F21=TRUE,\"✔\",\"　\")","v":"　"}]
[null,null,null,null,null,false,{"$f":"IF(F22=TRUE,\"✔\",\"　\")","v":"　"}]
[null,null,null,null,null,false,"　"]
[null,null,null,null,null,false,{"$f":"IF(F24=TRUE,\"✔\",\"　\")","v":"　"}]
[]
[]
["振込手数料引落方法"]
[]
[null,null,null,null,null,null,false,{"$f":"IF(G29=TRUE,\"✔\",\"　\")","v":"　"}]
[null,null,null,null,null,null,false,{"$f":"IF(G30=TRUE,\"✔\",\"　\")","v":"　"}]
[]
[]
[]
["ワンタイムパスワード・ハードウェアトークンの申し込み"]
[null,null,null,null,false,{"$f":"IF(E35=TRUE,\"✔\",\"　\")","v":"　"},null,null,null,null,false,{"$f":"IF(K35=TRUE,\"✔\",\"　\")","v":"　"}]
[]
[]
["個人情報の利用目的の同意",null,null,null,null,null,null,"利用規定確認"]
[null,null,null,null,null,false,{"$f":"IF(F39=TRUE,\"✔\",\"　\")","v":"　"},null,null,null,false]
[]
["＜預金口座振替利用申込書＞"]
["申込区分"]
[null,null,null,"新規"]
[null,null,null,"変更"]
[]
["振替資金入金口座"]
[null,null,null,"普通"]
[null,null,null,"当座"]
[]
["振替結果データ",null,null,"全件"]
[null,null,null,"未処理のみ"]
[]
["取扱手数料お支払い方法",null,null,"①振替資金入金時に振替資金から控除する。"]
[null,null,null,"②振替資金入金日と同一日に以下の指定口座から引落する。"]
[null,null,null,"③以下の指定口座から翌月１０日に引落す。"]
[]
["利用サービス"]
[]
[]
[null,false,{"$f":"IF(B60=TRUE,\"✔\",\"　\")","v":"　"},null,false,{"$f":"IF(E60=TRUE,\"✔\",\"　\")","v":"　"}]
[]
["振替日（口座振替）"]
[null,null,null,false,{"$f":"IF(D63=TRUE,\"✔\",\"　\")","v":"　"}]
[null,null,null,false,"　"]
[]
[]
["振替日（代金回収サービス）"]
[null,null,null,false,{"$f":"IF(D68=TRUE,\"✔\",\"　\")","v":"　"}]
[null,null,null,false,"　"]
[null,null,null,false,"　"]
[]
["取扱手数料お支払方法"]
[null,null,null,null,null,false,{"$f":"IF(F73=TRUE,\"✔\",\"　\")","v":"　"}]
[null,null,null,null,null,false,"　"]
[null,null,null,null,null,false,"　"]
[]
["取扱手数料引落口座（科目）"]
[null,null,null,null,"普通"]
[null,null,null,null,"当座"]
[]
["利用者ＩＤ"]
[]
[]
[]
[]
[]
[]
[]
[]
[null,null,null,1,2,3,4,5,6,7,8,9,10,11,12,13,14,15,16]
[null,null,"英小文字",false,false,false,false,false,false,false,false,false,false,false,false,false,false,false,false]
[null,null,null,{"$f":"IF(D91=TRUE,\"✔\",\"　\")","v":"　"},{"$f":"IF(E91=TRUE,\"✔\",\"　\")","v":"　"},"　","　","　","　","　","　","　","　","　","　","　","　","　","　"]
[null,null,"英大文字",false,false,false,false,false,false,false,false,false,false,false,false,false,false,false,false]
[null,null,null,{"$f":"IF(D93=TRUE,\"✔\",\"　\")","v":"　"},{"$f":"IF(E93=TRUE,\"✔\",\"　\")","v":"　"},"　","　","　","　","　","　","　","　","　","　","　","　","　","　"]
["初回ログインパスワード"]
[]
[]
[]
[]
[]
[]
[]
[]
[null,null,null,1,2,3,4,5,6,7,8,9,10,11,12,13,14,15,16]
[null,null,"英小文字",false,false,false,false,false,false,false,false,false,false,false,false,false,false,false,false]
[null,null,null,{"$f":"IF(D105=TRUE,\"✔\",\"　\")","v":"　"},{"$f":"IF(E105=TRUE,\"✔\",\"　\")","v":"　"},"　","　","　","　","　","　","　","　","　","　","　","　","　","　"]
[null,null,"英大文字",false,false,false,false,false,false,false,false,false,false,false,false,false,false,false,false]
[null,null,null,{"$f":"IF(D107=TRUE,\"✔\",\"　\")","v":"　"},{"$f":"IF(E107=TRUE,\"✔\",\"　\")","v":"　"},"　","　","　","　","　","　","　","　","　","　","　","　","　","　"]
[]
["初回取引実行パスワード"]
[]
[]
[]
[]
[]
[]
[]
[null,null,null,1,2,3,4,5,6,7,8,9,10,11,12,13,14,15,16]
[null,null,"英小文字",false,false,false,false,false,false,false,false,false,false,false,false,false,false,false,false]
[null,null,null,{"$f":"IF(D119=TRUE,\"✔\",\"　\")","v":"　"},{"$f":"IF(E119=TRUE,\"✔\",\"　\")","v":"　"},"　","　","　","　","　","　","　","　","　","　","　","　","　","　"]
[null,null,"英大文字",false,false,false,false,false,false,false,false,false,false,false,false,false,false,false,false]
[null,null,null,{"$f":"IF(D121=TRUE,\"✔\",\"　\")","v":"　"},{"$f":"IF(E121=TRUE,\"✔\",\"　\")","v":"　"},"　","　","　","　","　","　","　","　","　","　","　","　","　","　"]
[]
[]
[null,"山口銀行","もみじ銀行","北九州銀行"]
[null,"001：本店営業部","002：本店営業部","115：門司"]
[null,"002：彦島","003：広島駅前","116：本店営業部"]
[null,"004：今浦","004：大州","117：福岡"]
[null,"006：唐戸","005：東雲","118：八幡"]
[null,"007：新町出張所","005：仁保出張所","119：戸畑"]
[null,"008：長府","006：昭和町","120：若松"]
[null,"009：小月","007：翠町","121：長崎"]
[null,"010：安岡","008：宇品","122：三萩野"]
[null,"011：吉見","009：鷹野橋","125：八幡中央"]
[null,"012：豊浦","011：吉島","128：赤坂門"]
[null,"013：滝部","012：舟入","132：大分"]
[null,"015：西市","012：江波出張所","133：博多駅東"]
[null,"016：田部","013：堺町","137：久留米"]
[null,"017：厚狭","013：平和通出張所","139：熊本"]
[null,"018：埴生","014：天満","140：小倉東"]
[null,"019：美祢","016：三篠","142：西新"]
[null,"021：秋吉","017：広島中央","143：折尾"]
[null,"022：船木","018：新天地","145：守恒"]
[null,"024：小野田","019：己斐","146：八幡南"]
[null,"026：小野田駅前","020：牛田","147：沼"]
[null,"028：西ノ浜出張所","021：観音","150：天神"]
[null,"029：宇部","050：広島光町","152：福津"]
[null,"030：西宇部","051：商工センター","156：行橋"]
[null,"031：藤山","051：井口出張所","157：到津"]
[null,"032：西新川","053：中央市場","158：新宮"]
[null,"033：東新川","054：向洋","159：直方"]
[null,"035：床波","060：戸坂","161：相生"]
[null,"036：上宇部","070：古江","162：宗像"]
[null,"037：小郡","122：祇園","163：千早"]
[null,"039：秋穂","123：廿日市","164：飯塚"]
[null,"040：大田","123：青葉台出張所","165：筑紫野"]
[null,"041：阿知須","124：海田","166：苅田"]
[null,"042：嘉川","124：海田東出張所","167：ひびきの"]
[null,"043：山口","125：五日市","196：中津"]
[null,"044：県庁内","126：古市","197：葛原"]
[null,"046：米屋町出張所","126：中筋出張所","198：城野"]
[null,"047：西門前出張所","127：安芸府中","550：大里"]
[null,"048：湯田","127：浜田出張所"]
[null,"049：徳佐","128：可部"]
[null,"051：防府","130：西風新都"]
[null,"052：宮市","132：五日市駅前"]
[null,"053：三田尻","155：高陽"]
[null,"054：中関","156：緑井"]
[null,"056：堀","157：高陽ニュータウン"]
[null,"057：徳山","158：瀬野川"]
[null,"058：櫛ヶ浜","158：中野東出張所"]
[null,"059：福川","159：安"]
[null,"060：富田","162：矢野"]
[null,"061：鹿野","178：宮内"]
[null,"062：下松","179：坂"]
[null,"063：花岡","185：五日市北"]
[null,"064：光","186：温品"]
[null,"066：室積","187：可部北出張所"]
[null,"068：呼坂","189：熊野"]
[null,"069：柳井","191：大野出張所"]
[null,"071：田布施","192：沼田"]
[null,"072：平生","230：呉中央"]
[null,"075：上関","231：広中央"]
[null,"077：由宇","344：松永"]
[null,"078：大島","345：福山"]
[null,"081：安下庄","347：福山南"]
[null,"082：東和","350：蔵王"]
[null,"083：大島久賀","355：福山北"]
[null,"086：岩国","360：川口"]
[null,"087：錦帯橋","370：駅家"]
[null,"088：川下","380：引野"]
[null,"089：高森","415：黒瀬"]
[null,"090：玖珂","432：西条"]
[null,"091：広瀬","433：竹原"]
[null,"092：萩","435：三原"]
[null,"095：東萩","436：尾道"]
[null,"097：江崎","437：甲山"]
[null,"098：長門","438：因島田熊"]
[null,"099：仙崎","439：吉田"]
[null,"100：三隅","440：三次"]
[null,"102：徳山西","443：府中"]
[null,"103：和木","445：千代田"]
[null,"104：美和","447：コイン通り"]
[null,"105：山の田","460：神辺"]
[null,"109：都濃","490：西条南"]
[null,"110：油谷","493：高屋"]
[null,"111：東京","494：八本松"]
[null,"112：大阪","560：岩国"]
[null,"113：呉","564：徳山"]
[null,"114：広島","565：防府"]
[null,"123：大州","680：岡山"]
[null,"124：福山","682：倉敷"]
[null,"126：松山","775：小倉"]
[null,"127：名古屋","801：呉営業部"]
[null,"130：神戸","802：紙屋町"]
[null,"135：広島西","804：安芸津出張所"]
[null,"141：益田","805：音戸"]
[null,"148：祗園","806：広"]
[null,"149：廿日市","809：尾道中央"]
[null,"151：東広島","811：三原西"]
[null,"154：尾道","812：大竹"]
[null,"155：今治","814：吉浦"]
[null,"170：豊洲","815：広島東"]
[null,"172：阿武","817：府中中央出張所"]
[null,"173：周南団地","819：呉荒神"]
[null,"175：新下関駅前","823：因島"]
[null,"176：シーモール出張所","824：大崎"]
[null,"177：福浦","826：江田島"]
[null,"178：岩国南","827：阿賀"]
[null,"179：綾羅木","828：福山東"]
[null,"180：徳山駅前","830：祇園中央"]
[null,"181：小羽山出張所","835：福山西"]
[null,"182：大和","838：春日"]
[null,"183：則貞","840：焼山"]
[null,"184：長府東","841：安中央"]
[null,"185：吉敷","858：大柿出張所"]
[null,"186：大内","895：東京"]
[null,"187：右田"]
[null,"189：下松駅南出張所"]
[null,"192：柳井南"]
[null,"500：牟礼"]
[null,"502：東駅出張所"]
[null,"505：虹ヶ丘出張所"]
[null,"507：王司出張所"]
[null,"508：二番町出張所"]
[null,"509：東岐波出張所"]
[null,"511：厚南出張所"]
[null,"517：光井出張所"]

{"sheet":"作業シート２","index":8,"n_rows":19,"n_cols":18,"rows_kept":19,"cut":false,"hidden":true,"merged":[]}
[]
[]
[null,null,7,null,3,null,0,"-",null,8,null,7,null,9,null,0]
[null,null,null,null,null,null,null,null,null,null,null,5,null,1,null,1]
[]
[]
[]
[]
[]
[]
[null,null,null,null,null,null,null,null,null,null,null,null,null,null,null,null,null,"料金受取人払郵便"]
[null,null,null,null,null,null,null,null,null,null,null,null,null,null,null,null,null,"広島中央局"]
[null,null,null,null,null,null,null,null,null,null,null,null,null,null,null,null,null,"承　　認"]
[null,null,null,null,null,null,null,null,null,null,null,null,null,null,null,null,null,"0000"]
[null,null,null,null,null,null,null,null,null,null,null,null,null,null,null,null,null,"差出有効期間"]
[null,null,null,null,null,null,null,null,null,null,null,null,null,null,null,null,null,"２０２４年７月"]
[null,null,null,null,null,null,null,null,null,null,null,null,null,null,null,null,null,"３１日まで"]
[null,null,null,null,null,null,null,null,null,null,null,null,null,null,null,null,null,"切手をはらずに"]
[null,null,null,null,null,null,null,null,null,null,null,null,null,null,null,null,null,"ご投函ください"]